[Event "EIRCC 2019"]
[Site "Tallinn"]
[Date "2019.12.06"]
[Round "8.18"]
[White "Duzhakov, Ilya"]
[Black "Ruck, Robert"]
[Result "1/2-1/2"]
[ECO "D38"]
[WhiteElo "2351"]
[BlackElo "2551"]
[Annotator "RC"]
[PlyCount "194"]
[EventDate "2019.12.05"]
[EventType "swiss"]
[EventCountry "EST"]
[SourceTitle "playchess.com"]
[Source "ChessBase"]
[SourceQuality "1"]
[TimeControl "900+10"]

1. d4 {[%emt 0:00:00]} Nf6 {[%emt 0:00:00]} 2. c4 {[%emt 0:00:00]} e6 {[%emt 0:00:00]} 3. Nf3 {[%emt 0:00:00]} d5 {[%emt 0:00:00]} 4. Nc3 {[%emt 0:00:45]} Bb4 {[%emt 0:00:00]} 5. Bg5 {[%emt 0:00:35]} h6 {[%emt 0:00:05]} 6. Bxf6 {[%emt 0:00:09]} Qxf6 {[%emt 0:00:03]} 7. e3 {[%emt 0:00:35]} O-O {[%emt 0:00:06]} 8. Qb3 {[%emt 0:00:53]} c5 {[%emt 0:04:25]} 9. cxd5 {[%emt 0:01:33]} exd5 {[%emt 0:00:03]} 10. dxc5 {[%emt 0:00:03]} Bxc3+ {[%emt 0:01:50]} 11. Qxc3 {[%emt 0:01:55]} Qxc3+ {[%emt 0:00:09]} 12. bxc3 {[%emt 0:00:01]} Be6 {[%emt 0:00:21]} 13. Nd4 {[%emt 0:00:19]} Rc8 {[%emt 0:00:06]} 14. Nxe6 {[%emt 0:00:10]} fxe6 {[%emt 0:00:02]} 15. c4 {[%emt 0:00:01]} Rxc5 {[%emt 0:03:00]} 16. cxd5 {[%emt 0:00:06]} exd5 {[%emt 0:00:01]} 17. Be2 {[%emt 0:03:14]} Nd7 {[%emt 0:01:44]} 18. O-O {[%emt 0:02:04]} Nb6 {[%emt 0:00:45]} 19. Rfd1 {[%emt 0:00:18]} Na4 {[%emt 0:00:48]} 20. Bf3 {[%emt 0:00:27]} Nc3 {[%emt 0:00:02]} 21. Rd3 {[%emt 0:00:14]} Rac8 {[%emt 0:00:03]} 22. a4 {[%emt 0:01:52]} b6 {[%emt 0:00:55]} 23. Kf1 {[%emt 0:00:44]} Kf8 {[%emt 0:00:48]} 24. Ke1 {[%emt 0:00:34]} Ke7 {[%emt 0:00:11]} 25. Rd4 {[%emt 0:00:45]} Rc4 {[%emt 0:00:54]} 26. Kd2 {[%emt 0:00:22]} Rxd4+ {[%emt 0:00:36]} 27. exd4 {[%emt 0:00:02]} Rc4 {[%emt 0:00:02]} 28. Kd3 {[%emt 0:00:08]} Kd6 {[%emt 0:01:00]} 29. a5 {[%emt 0:00:09]} b5 {[%emt 0:00:01]} 30. a6 {[%emt 0:00:37]} b4 {[%emt 0:01:28]} 31. Bxd5 {[%emt 0:00:11]} Rc8 {[%emt 0:00:27]} 32. Bb3 {[%emt 0:00:02]} Rf8 {[%emt 0:00:01]} 33. f3 {[%emt 0:00:04]} Re8 {[%emt 0:00:00]} 34. Ra5 {[%emt 0:00:52]} Re2 {[%emt 0:00:21]} 35. Kc4 {[%emt 0:00:03]} Rxg2 {[%emt 0:00:10]} 36. Kxb4 {[%emt 0:00:01]} Ne2 {[%emt 0:00:03]} 37. Rd5+ {[%emt 0:00:07]} Kc6 {[%emt 0:00:03]} 38. Bc4 {[%emt 0:00:33]} Rxh2 {[%emt 0:00:13]} 39. Rc5+ {[%emt 0:00:16]} Kd6 {[%emt 0:00:16]} 40. Rd5+ {[%emt 0:00:19]} Kc6 {[%emt 0:00:01]} 41. Rd8 {[%emt 0:00:28]} Kc7 {[%emt 0:00:12]} 42. Ra8 {[%emt 0:00:11]} Nxd4 {[%emt 0:00:16]} 43. Rxa7+ {[%emt 0:00:01]} Kd6 {[%emt 0:00:08]} 44. Rxg7 {[%emt 0:00:03]} Nc6+ {[%emt 0:00:01]} 45. Kc3 {[%emt 0:00:04]} Rh3 {[%emt 0:00:07]} 46. a7 {[%emt 0:00:14]} Rxf3+ {[%emt 0:00:02]} 47. Bd3 {[%emt 0:00:02]} Nxa7 {[%emt 0:00:43]} 48. Rxa7 {[%emt 0:00:01]} h5 {[%emt 0:00:06]} 49. Kd4 {[%emt 0:00:04]} h4 {[%emt 0:00:04]} 50. Rh7 {[%emt 0:00:06]} h3 {[%emt 0:00:02]} 51. Rh6+ {[%emt 0:00:05]} Ke7 {[%emt 0:00:01]} 52. Be4 {[%emt 0:00:06]} Rg3 {[%emt 0:00:06]} 53. Ke5 {[%emt 0:00:03]} Re3 {[%emt 0:00:03]} 54. Rh7+ {[%emt 0:00:07]} Ke8 {[%emt 0:00:01]} 55. Kf4 {[%emt 0:00:02]} Re1 {[%emt 0:00:03]} 56. Rxh3 {[%emt 0:00:03]} Ke7 {[%emt 0:00:00]} 57. Rh7+ {[%emt 0:00:04]} Kf6 {[%emt 0:00:01]} 58. Rh6+ {[%emt 0:00:03]} Ke7 {[%emt 0:00:01]} 59. Bg2 {[%emt 0:00:02]} Re6 {[%emt 0:00:08]} 60. Rh7+ {[%emt 0:00:02]} Kd6 {[%emt 0:00:00]} 61. Bh3 {[%emt 0:00:03]} Re1 {[%emt 0:00:04]} 62. Rd7+ {[%emt 0:00:02]} Kc6 {[%emt 0:00:05]} 63. Rd2 {[%emt 0:00:02]} Kc5 {[%emt 0:00:01]} 64. Bg2 {[%emt 0:00:03]} Re7 {[%emt 0:00:05]} 65. Be4 {[%emt 0:00:02]} Re8 {[%emt 0:00:01]} 66. Rd5+ {[%emt 0:00:05]} Kc4 {[%emt 0:00:03]} 67. Ke3 {[%emt 0:00:05]} Rh8 {[%emt 0:00:11]} 68. Rd7 {[%emt 0:00:09]} Kc5 {[%emt 0:00:07]} 69. Rc7+ {[%emt 0:00:06]} Kb4 {[%emt 0:00:06]} 70. Bf5 {[%emt 0:00:11]} Rh5 {[%emt 0:00:09]} 71. Bd3 {[%emt 0:00:28]} Rh4 {[%emt 0:00:13]} 72. Kd2 {[%emt 0:00:02]} Rg4 {[%emt 0:00:07]} 73. Rb7+ {[%emt 0:00:31]} Kc5 {[%emt 0:00:03]} 74. Kc3 {[%emt 0:00:02]} Rh4 {[%emt 0:00:06]} 75. Rb5+ {[%emt 0:00:01]} Kc6 {[%emt 0:00:02]} 76. Rg5 {[%emt 0:00:04]} Rf4 {[%emt 0:00:05]} 77. Bc4 {[%emt 0:00:05]} Kd6 {[%emt 0:00:09]} 78. Rd5+ {[%emt 0:00:04]} Ke7 {[%emt 0:00:04]} 79. Kb4 {[%emt 0:00:03]} Kf6 {[%emt 0:00:03]} 80. Rd8 {[%emt 0:00:08]} Rf5 {[%emt 0:00:10]} 81. Bd3 {[%emt 0:00:24]} Re5 {[%emt 0:00:38]} 82. Kc4 {[%emt 0:00:04]} Kg5 {[%emt 0:00:06]} 83. Kd4 {[%emt 0:00:08]} Ra5 {[%emt 0:00:01]} 84. Rd6 {[%emt 0:00:05]} Kf4 {[%emt 0:00:28]} 85. Rf6+ {[%emt 0:00:05]} Kg5 {[%emt 0:00:01]} 86. Rf1 {[%emt 0:00:24]} Ra4+ {[%emt 0:00:07]} 87. Ke3 {[%emt 0:00:03]} Rb4 {[%emt 0:00:03]} 88. Rf5+ {[%emt 0:00:05]} Kh6 {[%emt 0:00:17]} 89. Be4 {[%emt 0:00:02]} Kg7 {[%emt 0:00:06]} 90. Kf4 {[%emt 0:00:02]} Rb6 {[%emt 0:00:03]} 91. Ra5 {[%emt 0:00:08]} Kf6 {[%emt 0:00:02]} 92. Rh5 {[%emt 0:00:04]} Rb2 {[%emt 0:00:04]} 93. Rh6+ {[%emt 0:00:04]} Ke7 {[%emt 0:00:00]} 94. Ke5 {[%emt 0:00:05]} Re2 {[%emt 0:00:02]} 95. Rh7+ {[%emt 0:00:01]} Ke8 {[%emt 0:00:00]} 96. Kd5 {[%emt 0:00:03]} Kf8 {[%emt 0:00:01]} 97. Bf5 {[%emt 0:00:10]} Re7 {[%emt 0:00:01]} 1/2-1/2

[Event "EIRCC 2019"]
[Site "Tallinn"]
[Date "2019.12.06"]
[Round "8.20"]
[White "Luukkonen, Tommi"]
[Black "Kanep, Meelis"]
[Result "0-1"]
[ECO "B90"]
[WhiteElo "2332"]
[BlackElo "2466"]
[Annotator "ChessBase"]
[PlyCount "88"]
[EventDate "2019.12.05"]
[EventType "swiss"]
[EventCountry "EST"]
[SourceTitle "playchess.com"]
[Source "ChessBase"]
[SourceQuality "1"]
[TimeControl "900+10"]

1. e4 {[%emt 0:00:00]} c5 {[%emt 0:00:00]} 2. Nf3 {[%emt 0:00:00]} d6 {[%emt 0:00:00]} 3. d4 {[%emt 0:00:00]} cxd4 {[%emt 0:00:00]} 4. Nxd4 {[%emt 0:00:00]} Nf6 {[%emt 0:00:04]} 5. Nc3 {[%emt 0:00:00]} a6 {[%emt 0:00:04]} 6. h3 {[%emt 0:00:00]} e6 {[%emt 0:00:11]} 7. g4 {[%emt 0:00:00]} h6 {[%emt 0:00:06]} 8. Bg2 {[%emt 0:00:00]} g5 {[%emt 0:00:09]} 9. Be3 {[%emt 0:00:00]} Nbd7 {[%emt 0:00:15]} 10. Qe2 {[%emt 0:00:01]} Ne5 {[%emt 0:00:10]} 11. O-O-O {[%emt 0:00:02]} Nfd7 {[%emt 0:00:13]} 12. h4 {[%emt 0:00:29]} Rg8 {[%emt 0:00:04]} 13. hxg5 {[%emt 0:00:02]} hxg5 {[%emt 0:00:03]} 14. Kb1 {[%emt 0:01:30]} b5 {[%emt 0:00:04]} 15. Nf3 {[%emt 0:02:25]} b4 {[%emt 0:03:45]} 16. Na4 {[%emt 0:00:17]} Rb8 {[%emt 0:04:24]} 17. Nxg5 {[%emt 0:01:12]} Rxg5 {[%emt 0:00:21]} 18. f4 {[%emt 0:00:01]} Rg8 {[%emt 0:00:34]} 19. fxe5 {[%emt 0:00:09]} Nxe5 {[%emt 0:00:02]} 20. g5 {[%emt 0:00:06]} Bd7 {[%emt 0:00:41]} 21. b3 {[%emt 0:00:26]} Bxa4 {[%emt 0:00:08]} 22. bxa4 {[%emt 0:00:00]} Qc7 {[%emt 0:00:44]} 23. Rd4 {[%emt 0:00:25]} Rc8 {[%emt 0:00:32]} 24. Rxb4 {[%emt 0:00:15]} Nc4 {[%emt 0:00:31]} 25. Bc1 {[%emt 0:00:01]} Bg7 {[%emt 0:00:11]} 26. Rb3 {[%emt 0:00:08]} Qc5 {[%emt 0:00:53]} 27. g6 {[%emt 0:01:15]} fxg6 {[%emt 0:00:39]} 28. e5 {[%emt 0:01:14]} Bxe5 {[%emt 0:01:15]} 29. Bb7 {[%emt 0:00:05]} Na5 {[%emt 0:00:42]} 30. Be3 {[%emt 0:01:03]} Qc7 {[%emt 0:00:29]} 31. Bxa6 {[%emt 0:02:05]} Nxb3 {[%emt 0:00:06]} 32. Bb5+ {[%emt 0:00:01]} Kf7 {[%emt 0:00:32]} 33. Qf2+ {[%emt 0:00:10]} Bf6 {[%emt 0:00:07]} 34. Bg5 {[%emt 0:03:17]} Qc3 {[%emt 0:00:02]} 35. Rh7+ {[%emt 0:00:01]} Rg7 {[%emt 0:00:10]} 36. Rxg7+ {[%emt 0:00:03]} Kxg7 {[%emt 0:00:01]} 37. Bxf6+ {[%emt 0:00:01]} Qxf6 {[%emt 0:00:03]} 38. Qa7+ {[%emt 0:00:07]} Qf7 {[%emt 0:00:10]} 39. Qxf7+ {[%emt 0:00:03]} Kxf7 {[%emt 0:00:01]} 40. axb3 {[%emt 0:00:01]} Ke7 {[%emt 0:00:28]} 41. a5 {[%emt 0:00:23]} d5 {[%emt 0:00:12]} 42. a6 {[%emt 0:00:50]} Kd6 {[%emt 0:00:02]} 43. Bd3 {[%emt 0:00:03]} g5 {[%emt 0:00:06]} 44. b4 {[%emt 0:00:01]} g4 {[%emt 0:00:09]} 0-1

[Event "EIRCC 2019"]
[Site "Tallinn"]
[Date "2019.12.06"]
[Round "8.21"]
[White "Loginov, Valery A"]
[Black "Rogule, Laura"]
[Result "0-1"]
[ECO "B67"]
[WhiteElo "2461"]
[BlackElo "2292"]
[Annotator "ChessBase"]
[PlyCount "84"]
[EventDate "2019.12.05"]
[EventType "swiss"]
[EventCountry "EST"]
[SourceTitle "playchess.com"]
[Source "ChessBase"]
[SourceQuality "1"]
[TimeControl "900+10"]

1. e4 {[%emt 0:00:00]} c5 {[%emt 0:00:00]} 2. Nf3 {[%emt 0:00:00]} Nc6 {[%emt 0:00:00]} 3. d4 {[%emt 0:00:01]} cxd4 {[%emt 0:00:02]} 4. Nxd4 {[%emt 0:00:02]} Nf6 {[%emt 0:00:08]} 5. Nc3 {[%emt 0:00:02]} d6 {[%emt 0:00:02]} 6. Bg5 {[%emt 0:00:28]} e6 {[%emt 0:00:07]} 7. Qd2 {[%emt 0:00:04]} a6 {[%emt 0:00:03]} 8. O-O-O {[%emt 0:00:03]} Bd7 {[%emt 0:00:08]} 9. f3 {[%emt 0:00:04]} b5 {[%emt 0:03:24]} 10. g4 {[%emt 0:00:16]} h6 {[%emt 0:01:07]} 11. Be3 {[%emt 0:00:04]} Ne5 {[%emt 0:00:21]} 12. a3 {[%emt 0:00:06]} Qb8 {[%emt 0:03:17]} 13. h4 {[%emt 0:00:41]} b4 {[%emt 0:00:16]} 14. axb4 {[%emt 0:00:08]} Qxb4 {[%emt 0:00:02]} 15. Be2 {[%emt 0:00:39]} Be7 {[%emt 0:02:06]} 16. g5 {[%emt 0:00:11]} Nh5 {[%emt 0:00:07]} 17. f4 {[%emt 0:03:27]} Nc4 {[%emt 0:00:10]} 18. Bxc4 {[%emt 0:00:05]} Qxc4 {[%emt 0:00:02]} 19. Rhg1 {[%emt 0:00:42]} hxg5 {[%emt 0:00:57]} 20. hxg5 {[%emt 0:00:04]} g6 {[%emt 0:00:23]} 21. f5 {[%emt 0:00:52]} a5 {[%emt 0:00:44]} 22. fxg6 {[%emt 0:04:52]} fxg6 {[%emt 0:00:02]} 23. e5 {[%emt 0:00:02]} d5 {[%emt 0:00:30]} 24. Rg4 {[%emt 0:00:33]} Qa6 {[%emt 0:01:05]} 25. Nb3 {[%emt 0:00:25]} Rc8 {[%emt 0:02:17]} 26. Ne4 {[%emt 0:00:55]} Qb5 {[%emt 0:00:58]} 27. Nec5 {[%emt 0:01:28]} Bxc5 {[%emt 0:00:48]} 28. Nxc5 {[%emt 0:00:12]} Rxc5 {[%emt 0:00:02]} 29. Bxc5 {[%emt 0:00:15]} Qxc5 {[%emt 0:00:01]} 30. Qd3 {[%emt 0:00:11]} Kf7 {[%emt 0:00:26]} 31. Rf1+ {[%emt 0:00:14]} Kg7 {[%emt 0:00:02]} 32. Rf6 {[%emt 0:00:07]} Nxf6 {[%emt 0:00:19]} 33. gxf6+ {[%emt 0:00:10]} Kf8 {[%emt 0:00:01]} 34. Kb1 {[%emt 0:00:49]} Rh1+ {[%emt 0:00:23]} 35. Ka2 {[%emt 0:00:02]} Be8 {[%emt 0:00:03]} 36. Qa6 {[%emt 0:00:43]} d4 {[%emt 0:00:11]} 37. Qb7 {[%emt 0:01:29]} Qc4+ {[%emt 0:00:13]} 38. Qb3 {[%emt 0:00:02]} Qxb3+ {[%emt 0:00:04]} 39. Kxb3 {[%emt 0:00:02]} Re1 {[%emt 0:00:07]} 40. Rg5 {[%emt 0:00:05]} Bb5 {[%emt 0:00:04]} 41. c4 {[%emt 0:00:26]} Re3+ {[%emt 0:00:10]} 42. Kc2 {[%emt 0:00:04]} Bxc4 {[%emt 0:00:02]} 0-1

[Event "EIRCC 2019"]
[Site "Tallinn"]
[Date "2019.12.06"]
[Round "8.22"]
[White "Dordzhieva, Dinara"]
[Black "Thorfinnsson, Bragi"]
[Result "1-0"]
[ECO "A80"]
[WhiteElo "2310"]
[BlackElo "2457"]
[Annotator "ChessBase"]
[PlyCount "87"]
[EventDate "2019.12.05"]
[EventType "swiss"]
[EventCountry "EST"]
[SourceTitle "playchess.com"]
[Source "ChessBase"]
[SourceQuality "1"]
[TimeControl "900+10"]

1. d4 {[%emt 0:00:00]} f5 {[%emt 0:00:06]} 2. Nf3 {[%emt 0:01:05]} Nf6 {[%emt 0:00:14]} 3. g3 {[%emt 0:00:02]} e6 {[%emt 0:00:22]} 4. c4 {[%emt 0:00:15]} c6 {[%emt 0:00:02]} 5. Bg2 {[%emt 0:00:25]} d5 {[%emt 0:00:06]} 6. Bf4 {[%emt 0:00:02]} Be7 {[%emt 0:00:52]} 7. O-O {[%emt 0:00:22]} O-O {[%emt 0:00:02]} 8. Qc2 {[%emt 0:00:15]} Ne4 {[%emt 0:01:33]} 9. Nbd2 {[%emt 0:00:01]} Nd7 {[%emt 0:00:16]} 10. Ne5 {[%emt 0:01:44]} Nxe5 {[%emt 0:00:39]} 11. Bxe5 {[%emt 0:00:02]} Bf6 {[%emt 0:00:14]} 12. Nf3 {[%emt 0:00:52]} Bd7 {[%emt 0:00:38]} 13. Rad1 {[%emt 0:00:29]} Be8 {[%emt 0:00:16]} 14. Bxf6 {[%emt 0:01:04]} gxf6 {[%emt 0:00:02]} 15. Nh4 {[%emt 0:00:51]} Kh8 {[%emt 0:02:41]} 16. Bf3 {[%emt 0:00:19]} Qe7 {[%emt 0:00:48]} 17. e3 {[%emt 0:00:49]} Rd8 {[%emt 0:00:21]} 18. Rc1 {[%emt 0:01:04]} Rg8 {[%emt 0:00:43]} 19. Rfd1 {[%emt 0:00:38]} Bg6 {[%emt 0:01:07]} 20. cxd5 {[%emt 0:01:35]} exd5 {[%emt 0:01:18]} 21. a3 {[%emt 0:00:40]} Rde8 {[%emt 0:00:35]} 22. Re1 {[%emt 0:00:28]} a6 {[%emt 0:00:01]} 23. b4 {[%emt 0:00:52]} Nd6 {[%emt 0:00:02]} 24. Qc3 {[%emt 0:00:05]} Qf7 {[%emt 0:00:35]} 25. a4 {[%emt 0:00:20]} Bh5 {[%emt 0:00:38]} 26. Bg2 {[%emt 0:00:02]} Re4 {[%emt 0:00:39]} 27. Bxe4 {[%emt 0:03:39]} fxe4 {[%emt 0:00:10]} 28. h3 {[%emt 0:00:12]} Qd7 {[%emt 0:00:50]} 29. Kh2 {[%emt 0:00:05]} Nf5 {[%emt 0:00:12]} 30. Ng2 {[%emt 0:00:09]} Bf3 {[%emt 0:00:02]} 31. Nf4 {[%emt 0:00:05]} Qg7 {[%emt 0:00:04]} 32. Rg1 {[%emt 0:00:08]} Nh6 {[%emt 0:00:19]} 33. Qc5 {[%emt 0:01:15]} Ng4+ {[%emt 0:00:29]} 34. hxg4 {[%emt 0:00:01]} Qh6+ {[%emt 0:00:01]} 35. Nh3 {[%emt 0:00:20]} Rg6 {[%emt 0:00:31]} 36. g5 {[%emt 0:00:20]} Rxg5 {[%emt 0:00:09]} 37. g4 {[%emt 0:00:05]} Rxg4 {[%emt 0:00:37]} 38. Qd6 {[%emt 0:00:19]} Rg6 {[%emt 0:02:25]} 39. Rxg6 {[%emt 0:00:06]} hxg6 {[%emt 0:00:06]} 40. Qxf6+ {[%emt 0:00:03]} Kh7 {[%emt 0:00:01]} 41. Rg1 {[%emt 0:00:04]} Qh5 {[%emt 0:00:00]} 42. Qf7+ {[%emt 0:00:05]} Kh6 {[%emt 0:00:02]} 43. Qf4+ {[%emt 0:00:00]} Kh7 {[%emt 0:00:00]} 44. Qg5 {[%emt 0:00:05]} 1-0

[Event "EIRCC 2019"]
[Site "Tallinn"]
[Date "2019.12.06"]
[Round "8.23"]
[White "Ladva, Ottomar"]
[Black "Valner, Uku"]
[Result "1-0"]
[ECO "E17"]
[WhiteElo "2446"]
[BlackElo "2243"]
[Annotator "NA RC"]
[PlyCount "151"]
[EventDate "2019.12.05"]
[EventType "swiss"]
[EventCountry "EST"]
[SourceTitle "playchess.com"]
[Source "ChessBase"]
[SourceQuality "1"]
[TimeControl "900+10"]

1. Nf3 {[%emt 0:00:00]} Nf6 {[%emt 0:02:39]} 2. c4 {[%emt 0:00:27]} b6 {[%emt 0:00:06]} 3. d4 {[%emt 0:00:21]} e6 {[%emt 0:00:03]} 4. g3 {[%emt 0:00:02]} Bb7 {[%emt 0:00:01]} 5. Bg2 {[%emt 0:00:02]} Be7 {[%emt 0:00:06]} 6. O-O {[%emt 0:00:02]} O-O {[%emt 0:00:01]} 7. d5 {[%emt 0:00:37]} d6 {[%emt 0:00:50]} 8. Nc3 {[%emt 0:00:22]} Re8 {[%emt 0:00:48]} 9. Nd4 {[%emt 0:02:05]} e5 {[%emt 0:00:56]} 10. Nc6 {[%emt 0:00:11]} Nxc6 {[%emt 0:00:36]} 11. dxc6 {[%emt 0:00:03]} Bc8 {[%emt 0:00:25]} 12. Bg5 {[%emt 0:00:34]} Be6 {[%emt 0:00:28]} 13. Bxf6 {[%emt 0:01:18]} Bxf6 {[%emt 0:00:01]} 14. Qd3 {[%emt 0:00:48]} g6 {[%emt 0:02:49]} 15. b4 {[%emt 0:00:50]} e4 {[%emt 0:00:59]} 16. Bxe4 {[%emt 0:01:48]} a5 {[%emt 0:01:12]} 17. b5 {[%emt 0:00:34]} Bh3 {[%emt 0:00:32]} 18. Bg2 {[%emt 0:00:40]} Bxg2 {[%emt 0:00:03]} 19. Kxg2 {[%emt 0:00:02]} Bxc3 {[%emt 0:00:01]} 20. Qxc3 {[%emt 0:00:01]} Rxe2 {[%emt 0:00:02]} 21. Rfe1 {[%emt 0:00:09]} Re6 {[%emt 0:00:02]} 22. Rxe6 {[%emt 0:03:05]} fxe6 {[%emt 0:00:01]} 23. h4 {[%emt 0:02:05]} Qe7 {[%emt 0:00:44]} 24. Re1 {[%emt 0:00:38]} Re8 {[%emt 0:00:27]} 25. Re3 {[%emt 0:02:01]} Qg7 {[%emt 0:01:06]} 26. Qe1 {[%emt 0:00:11]} Kf7 {[%emt 0:00:02]} 27. c5 {[%emt 0:00:07]} dxc5 {[%emt 0:01:08]} 28. Rd3 {[%emt 0:00:01]} Re7 {[%emt 0:00:13]} 29. Qd1 {[%emt 0:00:13]} Qe5 {[%emt 0:00:21]} 30. Rd7 {[%emt 0:00:25]} c4 {[%emt 0:00:42]} 31. a4 {[%emt 0:00:02]} c3 {[%emt 0:01:27]} 32. Rd3 {[%emt 0:00:18]} h5 {[%emt 0:00:47]} 33. Qc2 {[%emt 0:00:10]} Ke8 {[%emt 0:00:24]} 34. Rxc3 {[%emt 0:00:07]} Qf5 {[%emt 0:00:01]} 35. Qe2 {[%emt 0:00:10]} e5 {[%emt 0:00:03]} 36. Rf3 {[%emt 0:00:07]} Qg4 {[%emt 0:00:20]} 37. Re3 {[%emt 0:00:06]} Qe6 {[%emt 0:00:13]} 38. Re4 {[%emt 0:00:08]} Qd5 {[%emt 0:00:05]} 39. Kh2 {[%emt 0:00:06]} Kf7 {[%emt 0:00:30]} 40. Qe3 {[%emt 0:00:18]} Kg7 {[%emt 0:00:10]} 41. Qe2 {[%emt 0:00:22]} Kf7 {[%emt 0:00:15]} 42. Kg1 {[%emt 0:00:08]} Re6 {[%emt 0:00:05]} 43. Qe3 {[%emt 0:00:09]} Qd1+ {[%emt 0:00:05]} 44. Kh2 {[%emt 0:00:02]} Qd5 {[%emt 0:00:02]} 45. f3 {[%emt 0:00:19]} Qa2+ {[%emt 0:00:06]} 46. Qe2 {[%emt 0:00:09]} Qd5 {[%emt 0:00:03]} 47. Kh3 {[%emt 0:00:10]} Kf6 {[%emt 0:00:21]} 48. Kh2 {[%emt 0:00:12]} Kf7 {[%emt 0:00:02]} 49. Qe3 {[%emt 0:00:12]} Qa2+ {[%emt 0:00:02]} 50. Kh3 {[%emt 0:00:03]} Qa1 {[%emt 0:00:08]} 51. Qe1 {[%emt 0:00:07]} Qb2 {[%emt 0:00:07]} 52. f4 {[%emt 0:00:15]} Kf6 {[%emt 0:00:18]} 53. Qf1 {[%emt 0:00:04]} Kg7 {[%emt 0:00:32]} 54. Qd1 {[%emt 0:00:02]} Re7 {[%emt 0:00:16]} 55. Qd8 {[%emt 0:00:21]} Rf7 {[%emt 0:00:11]} 56. Rxe5 {[%emt 0:00:09]} Qa1 {[%emt 0:00:00]} 57. Qd5 {[%emt 0:00:17]} Qxa4 {[%emt 0:00:15]} 58. Rg5 {[%emt 0:00:12]} Qa1 {[%emt 0:00:03]} 59. Kh2 {[%emt 0:00:10]} Qb2+ {[%emt 0:00:10]} 60. Kh3 {[%emt 0:00:03]} Qa1 {[%emt 0:00:07]} 61. Kg2 {[%emt 0:00:15]} Qb2+ {[%emt 0:00:04]} 62. Kf3 {[%emt 0:00:05]} Qc3+ {[%emt 0:00:10]} 63. Kf2 {[%emt 0:00:10]} Qb2+ {[%emt 0:00:25]} 64. Ke3 {[%emt 0:00:14]} Qc3+ {[%emt 0:00:02]} 65. Ke2 {[%emt 0:00:08]} Qc2+ {[%emt 0:00:17]} 66. Kf3 {[%emt 0:00:02]} Qc3+ {[%emt 0:00:01]} 67. Kg2 {[%emt 0:00:00]} Qb2+ {[%emt 0:00:00]} 68. Kh3 {[%emt 0:00:02]} Qa1 {[%emt 0:00:02]} 69. Qg2 {[%emt 0:00:19]} Qf6 {[%emt 0:00:39]} 70. Qc2 {[%emt 0:00:28]} Kh6 {[%emt 0:00:16]} 71. f5 {[%emt 0:00:10]} Rg7 {[%emt 0:00:10]} 72. Qd2 {[%emt 0:00:13]} Kh7 {[%emt 0:00:05]} 73. fxg6+ {[%emt 0:00:08]} Rxg6 {[%emt 0:00:01]} 74. Rxh5+ {[%emt 0:00:03]} Kg7 {[%emt 0:00:01]} 75. Qd7+ {[%emt 0:00:03]} Qf7 {[%emt 0:00:01]} 76. Rh7+ {[%emt 0:00:03]} 1-0

[Event "EIRCC 2019"]
[Site "Tallinn"]
[Date "2019.12.06"]
[Round "8.24"]
[White "Vorobjov, Pavel"]
[Black "Galopoulos, Nikolaos"]
[Result "1/2-1/2"]
[ECO "D85"]
[WhiteElo "2304"]
[BlackElo "2439"]
[Annotator "NA"]
[PlyCount "116"]
[EventDate "2019.12.05"]
[EventType "swiss"]
[EventCountry "EST"]
[SourceTitle "playchess.com"]
[Source "ChessBase"]
[SourceQuality "1"]
[TimeControl "900+10"]

1. d4 {[%emt 0:00:00]} Nf6 {[%emt 0:00:00]} 2. c4 {[%emt 0:00:00]} g6 {[%emt 0:00:00]} 3. Nc3 {[%emt 0:00:00]} d5 {[%emt 0:00:00]} 4. cxd5 {[%emt 0:00:02]} Nxd5 {[%emt 0:00:00]} 5. Qa4+ {[%emt 0:00:03]} Nc6 {[%emt 0:00:34]} 6. Nf3 {[%emt 0:02:01]} Bg7 {[%emt 0:00:02]} 7. e3 {[%emt 0:02:06]} Nb6 {[%emt 0:00:09]} 8. Qb5 {[%emt 0:00:55]} O-O {[%emt 0:00:10]} 9. Be2 {[%emt 0:00:24]} e5 {[%emt 0:01:06]} 10. d5 {[%emt 0:01:44]} Ne7 {[%emt 0:00:49]} 11. e4 {[%emt 0:00:14]} f5 {[%emt 0:00:17]} 12. Bg5 {[%emt 0:01:08]} h6 {[%emt 0:00:01]} 13. Bxe7 {[%emt 0:00:28]} Qxe7 {[%emt 0:00:01]} 14. O-O {[%emt 0:00:22]} Bd7 {[%emt 0:00:37]} 15. Qa5 {[%emt 0:00:15]} g5 {[%emt 0:01:56]} 16. Rfd1 {[%emt 0:01:27]} g4 {[%emt 0:00:07]} 17. Nd2 {[%emt 0:00:40]} f4 {[%emt 0:00:02]} 18. d6 {[%emt 0:00:45]} cxd6 {[%emt 0:00:29]} 19. Nd5 {[%emt 0:01:39]} Nxd5 {[%emt 0:00:04]} 20. Bc4 {[%emt 0:00:05]} Kh8 {[%emt 0:00:25]} 21. Qxd5 {[%emt 0:00:39]} Bc6 {[%emt 0:02:17]} 22. Qe6 {[%emt 0:00:02]} Qg5 {[%emt 0:00:20]} 23. f3 {[%emt 0:00:35]} Rf6 {[%emt 0:00:55]} 24. Qxg4 {[%emt 0:00:17]} Qxg4 {[%emt 0:00:37]} 25. fxg4 {[%emt 0:00:01]} Rg6 {[%emt 0:01:06]} 26. h3 {[%emt 0:00:11]} Bf6 {[%emt 0:00:01]} 27. Rac1 {[%emt 0:00:31]} Bd8 {[%emt 0:00:01]} 28. Bd5 {[%emt 0:00:21]} Bb6+ {[%emt 0:01:18]} 29. Kh2 {[%emt 0:00:01]} Rc8 {[%emt 0:01:17]} 30. Nf3 {[%emt 0:00:23]} Bf2 {[%emt 0:00:43]} 31. Rc3 {[%emt 0:00:09]} Bd7 {[%emt 0:02:44]} 32. Bxb7 {[%emt 0:00:21]} Rxc3 {[%emt 0:00:04]} 33. bxc3 {[%emt 0:00:01]} Bb5 {[%emt 0:01:42]} 34. Rd2 {[%emt 0:00:26]} Bg3+ {[%emt 0:00:05]} 35. Kg1 {[%emt 0:00:03]} Rg7 {[%emt 0:00:01]} 36. Bd5 {[%emt 0:00:27]} Rc7 {[%emt 0:00:01]} 37. c4 {[%emt 0:00:06]} Bc6 {[%emt 0:00:08]} 38. Bxc6 {[%emt 0:00:37]} Rxc6 39. Rc2 {[%emt 0:00:02]} Ra6 {[%emt 0:00:43]} 40. Kf1 {[%emt 0:00:27]} Ra3 {[%emt 0:00:01]} 41. Ke2 {[%emt 0:01:20]} Re3+ {[%emt 0:00:01]} 42. Kd2 {[%emt 0:00:05]} Rxe4 {[%emt 0:00:01]} 43. Rc3 {[%emt 0:00:12]} Bf2 {[%emt 0:00:16]} 44. h4 {[%emt 0:00:12]} Bc5 {[%emt 0:00:11]} 45. a3 {[%emt 0:00:15]} Bb6 {[%emt 0:00:01]} 46. Kd1 {[%emt 0:00:13]} Kg7 {[%emt 0:00:15]} 47. h5 {[%emt 0:00:08]} Kf6 {[%emt 0:00:09]} 48. Rd3 {[%emt 0:00:09]} Bd4 {[%emt 0:00:29]} 49. Nd2 {[%emt 0:00:08]} Re3 {[%emt 0:00:05]} 50. Rxe3 {[%emt 0:00:03]} Bxe3 {[%emt 0:00:08]} 51. Ne4+ {[%emt 0:00:04]} Ke6 {[%emt 0:00:03]} 52. Ke2 {[%emt 0:00:13]} Bb6 {[%emt 0:00:01]} 53. Kd3 {[%emt 0:00:05]} Bd8 {[%emt 0:00:01]} 54. Nc3 {[%emt 0:00:08]} Kf6 {[%emt 0:00:06]} 55. Ne4+ {[%emt 0:00:11]} Ke6 {[%emt 0:00:01]} 56. Nc3 {[%emt 0:00:05]} Kf6 {[%emt 0:00:00]} 57. Ne4+ {[%emt 0:00:29]} Ke6 {[%emt 0:00:01]} 58. Nc3 {[%emt 0:00:09]} Kf6 {[%emt 0:00:02]} 1/2-1/2